[Event "European Women's Chess Championship (1-48)"]
[Site "Batumi, Georgia"]
[Date "2026.05.25"]
[Round "1.28"]
[White "Poliakova, Varvara"]
[Black "Bulmaga, Irina"]
[Result "1-0"]
[TimeControl "90min/ 40moves+ 30min+ 30-sec increment from move 1"]
[WhiteTitle "-"]
[BlackTitle "-"]
[WhiteFideId "13518313"]
[BlackFideId "13903063"]
[WhiteElo "2108"]
[BlackElo "2361"]

1. d4 {[%clk 01:30:54]} {[%emt 00:00:06]} Nf6 {[%clk 01:30:48]} {[%emt
00:00:13]} 2. c4 {[%clk 01:30:39]} {[%emt 00:00:44]} e6 {[%clk 01:31:03]}
{[%emt 00:00:15]} 3. Nf3 {[%clk 01:30:42]} {[%emt 00:00:27]} b6 {[%clk
01:31:20]} {[%emt 00:00:14]} 4. g3 {[%clk 01:28:22]} {[%emt 00:02:48]} Bb7
{[%clk 01:31:30]} {[%emt 00:00:22]} 5. Bg2 {[%clk 01:28:40]} {[%emt 00:00:11]}
Be7 {[%clk 01:31:50]} {[%emt 00:00:10]} 6. O-O {[%clk 01:28:24]} {[%emt
00:00:46]} O-O {[%clk 01:32:10]} {[%emt 00:00:10]} 7. Re1 {[%clk 01:26:30]}
{[%emt 00:02:23]} Na6 {[%clk 01:28:57]} {[%emt 00:03:44]} 8. a3 {[%clk
01:23:22]} {[%emt 00:03:38]} d5 {[%clk 01:27:20]} {[%emt 00:02:07]} 9. cxd5
{[%clk 01:19:12]} {[%emt 00:04:41]} exd5 {[%clk 01:27:36]} {[%emt 00:00:14]} 10.
Nc3 {[%clk 01:17:13]} {[%emt 00:02:28]} c5 {[%clk 01:26:20]} {[%emt 00:01:46]}
11. Bf4 {[%clk 01:14:59]} {[%emt 00:02:45]} Ne4 {[%clk 01:16:44]} {[%emt
00:10:06]} 12. Rc1 {[%clk 01:10:02]} {[%emt 00:05:27]} Rc8 {[%clk 01:03:49]}
{[%emt 00:13:25]} 13. Qa4 {[%clk 01:01:50]} {[%emt 00:08:41]} g5 {[%clk
00:28:11]} {[%emt 00:36:08]} 14. Be3 {[%clk 01:00:03]} {[%emt 00:02:17]} g4
{[%clk 00:16:50]} {[%emt 00:11:52]} 15. Ne5 {[%clk 00:57:40]} {[%emt 00:02:52]}
cxd4 {[%clk 00:11:24]} {[%emt 00:05:57]} 16. Bxd4 {[%clk 00:57:36]} {[%emt
00:00:34]} f6 {[%clk 00:05:49]} {[%emt 00:06:04]} 17. Nxg4 {[%clk 00:55:38]}
{[%emt 00:02:28]} Rc4 {[%clk 00:06:07]} {[%emt 00:00:13]} 18. Qd1 {[%clk
00:56:02]} {[%emt 00:00:05]} Nac5 {[%clk 00:00:50]} {[%emt 00:05:47]} 19. Nxe4
{[%clk 00:54:33]} {[%emt 00:01:58]} Rxd4 {[%clk 00:00:35]} {[%emt 00:00:46]} 20.
Qxd4 {[%clk 00:54:54]} {[%emt 00:00:10]} Nb3 {[%clk 00:00:47]} {[%emt
00:00:18]} 21. Qd1 {[%clk 00:48:36]} {[%emt 00:06:47]} Nxc1 {[%clk 00:01:02]}
{[%emt 00:00:16]} 22. Nc3 {[%clk 00:48:12]} {[%emt 00:00:54]} d4 {[%clk
00:00:39]} {[%emt 00:00:52]} 23. Bxb7 {[%clk 00:48:33]} {[%emt 00:00:09]} dxc3
{[%clk 00:00:54]} {[%emt 00:00:16]} 24. Qxc1 {[%clk 00:48:30]} {[%emt
00:00:33]} Qd7 {[%clk 00:00:33]} {[%emt 00:00:50]} 25. Bf3 {[%clk 00:48:40]}
{[%emt 00:00:20]} cxb2 {[%clk 00:00:44]} {[%emt 00:00:19]} 26. Qxb2 {[%clk
00:49:02]} {[%emt 00:00:07]} Kg7 {[%clk 00:00:52]} {[%emt 00:00:23]} 27. Ne3
{[%clk 00:49:10]} {[%emt 00:00:22]} Bc5 {[%clk 00:01:06]} {[%emt 00:00:17]} 28.
Rd1 {[%clk 00:49:23]} {[%emt 00:00:17]} Qc7 {[%clk 00:01:19]} {[%emt 00:00:16]}
29. Nf5+ {[%clk 00:49:12]} {[%emt 00:00:41]} Kh8 {[%clk 00:01:42]} {[%emt
00:00:08]} 30. a4 {[%clk 00:49:04]} {[%emt 00:00:38]} a6 {[%clk 00:01:37]}
{[%emt 00:00:35]} 31. Kg2 {[%clk 00:48:40]} {[%emt 00:00:54]} Qc8 {[%clk
00:01:28]} {[%emt 00:00:39]} 32. Nd6 {[%clk 00:48:36]} {[%emt 00:00:33]} Qd7
{[%clk 00:01:32]} {[%emt 00:00:26]} 33. Qd2 {[%clk 00:48:15]} {[%emt 00:00:51]}
Qxa4 {[%clk 00:01:36]} {[%emt 00:00:27]} 34. Qh6 {[%clk 00:47:35]} {[%emt
00:01:09]} 1-0

[Event "European Women's Chess Championship (1-48)"]
[Site "Batumi, Georgia"]
[Date "2026.05.25"]
[Round "1.29"]
[White "Milliet, Sophie"]
[Black "Mkrtchyan, Anahit H."]
[Result "1-0"]
[TimeControl "90min/ 40moves+ 30min+ 30-sec increment from move 1"]
[WhiteTitle "-"]
[BlackTitle "-"]
[WhiteFideId "623725"]
[BlackFideId "13314858"]
[WhiteElo "2361"]
[BlackElo "2107"]

1. Nf3 {[%clk 01:30:55]} {[%emt 00:00:04]} Nf6 {[%clk 01:30:47]} {[%emt
00:00:13]} 2. c4 {[%clk 01:31:19]} {[%emt 00:00:06]} g6 {[%clk 01:31:06]}
{[%emt 00:00:11]} 3. b3 {[%clk 01:31:37]} {[%emt 00:00:12]} Bg7 {[%clk
01:30:50]} {[%emt 00:00:46]} 4. Bb2 {[%clk 01:32:03]} {[%emt 00:00:04]} c5
{[%clk 01:28:48]} {[%emt 00:02:32]} 5. g3 {[%clk 01:31:25]} {[%emt 00:01:08]}
O-O {[%clk 01:24:42]} {[%emt 00:04:36]} 6. Bg2 {[%clk 01:31:25]} {[%emt
00:00:30]} d6 {[%clk 01:21:24]} {[%emt 00:03:49]} 7. d4 {[%clk 01:30:44]}
{[%emt 00:01:11]} Nbd7 {[%clk 01:18:01]} {[%emt 00:03:53]} 8. O-O {[%clk
01:29:13]} {[%emt 00:01:59]} Rb8 {[%clk 01:11:06]} {[%emt 00:07:26]} 9. Nc3
{[%clk 01:28:07]} {[%emt 00:01:36]} a6 {[%clk 01:04:42]} {[%emt 00:06:55]} 10.
a4 {[%clk 01:14:12]} {[%emt 00:14:24]} Ne8 {[%clk 00:34:52]} {[%emt 00:30:20]}
11. e3 {[%clk 01:09:47]} {[%emt 00:04:55]} Nc7 {[%clk 00:32:03]} {[%emt
00:03:19]} 12. Qe2 {[%clk 01:07:49]} {[%emt 00:02:28]} b5 {[%clk 00:21:47]}
{[%emt 00:10:46]} 13. axb5 {[%clk 01:07:24]} {[%emt 00:00:55]} axb5 {[%clk
00:22:11]} {[%emt 00:00:07]} 14. cxb5 {[%clk 01:07:27]} {[%emt 00:00:27]} Nf6
{[%clk 00:17:08]} {[%emt 00:05:33]} 15. dxc5 {[%clk 01:05:11]} {[%emt
00:02:45]} dxc5 {[%clk 00:16:40]} {[%emt 00:00:58]} 16. Ne5 {[%clk 01:03:32]}
{[%emt 00:02:09]} Qd6 {[%clk 00:08:48]} {[%emt 00:08:22]} 17. Nc4 {[%clk
01:02:16]} {[%emt 00:01:46]} Qe6 {[%clk 00:09:01]} {[%emt 00:00:18]} 18. b6
{[%clk 00:59:53]} {[%emt 00:02:53]} Ncd5 {[%clk 00:06:58]} {[%emt 00:02:32]} 19.
Na4 {[%clk 00:59:07]} {[%emt 00:01:17]} Nd7 {[%clk 00:01:43]} {[%emt 00:05:45]}
20. Rfd1 {[%clk 00:40:42]} {[%emt 00:18:54]} N5xb6 {[%clk 00:01:35]} {[%emt
00:00:38]} 21. Ncxb6 {[%clk 00:41:02]} {[%emt 00:00:10]} Nxb6 {[%clk 00:01:35]}
{[%emt 00:00:30]} 22. Nxc5 {[%clk 00:37:39]} {[%emt 00:03:54]} Qf5 {[%clk
00:01:26]} {[%emt 00:00:39]} 23. Bxg7 {[%clk 00:37:43]} {[%emt 00:00:26]} Kxg7
{[%clk 00:01:46]} {[%emt 00:00:09]} 24. b4 {[%clk 00:37:58]} {[%emt 00:00:16]}
e5 {[%clk 00:00:59]} {[%emt 00:01:17]} 25. Rd6 {[%clk 00:35:31]} {[%emt
00:02:56]} Be6 {[%clk 00:00:40]} {[%emt 00:00:50]} 26. Be4 {[%clk 00:27:39]}
{[%emt 00:08:21]} Qf6 {[%clk 00:00:32]} {[%emt 00:00:39]} 27. Ra6 {[%clk
00:25:03]} {[%emt 00:03:06]} Nc8 {[%clk 00:00:34]} {[%emt 00:00:28]} 28. Rxe6
{[%clk 00:20:35]} {[%emt 00:04:57]} fxe6 {[%clk 00:00:48]} {[%emt 00:00:16]} 29.
Nd7 {[%clk 00:16:27]} {[%emt 00:04:39]} Qe7 {[%clk 00:01:03]} {[%emt 00:00:14]}
30. Nxb8 {[%clk 00:16:50]} {[%emt 00:00:07]} Qxb4 {[%clk 00:01:03]} {[%emt
00:00:31]} 31. Nd7 {[%clk 00:16:44]} {[%emt 00:00:36]} Rd8 {[%clk 00:00:58]}
{[%emt 00:00:35]} 32. Bc6 {[%clk 00:16:10]} {[%emt 00:01:04]} Qb1+ {[%clk
00:01:15]} {[%emt 00:00:13]} 33. Qf1 {[%clk 00:14:48]} {[%emt 00:01:51]} Qc2
{[%clk 00:01:25]} {[%emt 00:00:19]} 34. Ba4 {[%clk 00:14:55]} {[%emt 00:00:25]}
Qc3 {[%clk 00:01:22]} {[%emt 00:00:32]} 35. Qb5 {[%clk 00:14:09]} {[%emt
00:01:17]} Qe1+ {[%clk 00:00:36]} {[%emt 00:01:16]} 36. Kg2 {[%clk 00:14:35]}
{[%emt 00:00:03]} e4 {[%clk 00:00:32]} {[%emt 00:00:34]} 37. Qe5+ {[%clk
00:14:36]} {[%emt 00:00:29]} Kh6 {[%clk 00:00:53]} {[%emt 00:00:09]} 38. Qxe4
{[%clk 00:14:42]} {[%emt 00:00:25]} 1-0

[Event "European Women's Chess Championship (1-48)"]
[Site "Batumi, Georgia"]
[Date "2026.05.25"]
[Round "1.30"]
[White "Aghaverdiyeva, Maryam"]
[Black "Socko, Monika"]
[Result "0-1"]
[TimeControl "90min/ 40moves+ 30min+ 30-sec increment from move 1"]
[WhiteTitle "-"]
[BlackTitle "-"]
[WhiteFideId "13452509"]
[BlackFideId "1106619"]
[WhiteElo "2103"]
[BlackElo "2355"]

1. e4 {[%clk 01:30:38]} {[%emt 00:00:22]} e6 {[%clk 01:30:56]} {[%emt
00:00:04]} 2. d4 {[%clk 01:30:51]} {[%emt 00:00:17]} d5 {[%clk 01:31:22]}
{[%emt 00:00:05]} 3. Nd2 {[%clk 01:30:47]} {[%emt 00:00:33]} Be7 {[%clk
01:31:46]} {[%emt 00:00:06]} 4. Ngf3 {[%clk 01:30:59]} {[%emt 00:00:18]} Nf6
{[%clk 01:32:07]} {[%emt 00:00:08]} 5. e5 {[%clk 01:31:22]} {[%emt 00:00:07]}
Nfd7 {[%clk 01:32:32]} {[%emt 00:00:05]} 6. Bd3 {[%clk 01:31:45]} {[%emt
00:00:07]} c5 {[%clk 01:32:57]} {[%emt 00:00:06]} 7. c3 {[%clk 01:32:12]}
{[%emt 00:00:04]} Nc6 {[%clk 01:33:22]} {[%emt 00:00:04]} 8. O-O {[%clk
01:32:35]} {[%emt 00:00:07]} a5 {[%clk 01:33:48]} {[%emt 00:00:04]} 9. a4
{[%clk 01:32:59]} {[%emt 00:00:06]} O-O {[%clk 01:33:10]} {[%emt 00:01:07]} 10.
Re1 {[%clk 01:29:54]} {[%emt 00:03:36]} f6 {[%clk 01:33:35]} {[%emt 00:00:05]}
11. exf6 {[%clk 01:26:49]} {[%emt 00:03:35]} Nxf6 {[%clk 01:34:01]} {[%emt
00:00:05]} 12. dxc5 {[%clk 01:25:06]} {[%emt 00:02:12]} Qc7 {[%clk 01:23:52]}
{[%emt 00:10:40]} 13. Nb3 {[%clk 01:20:58]} {[%emt 00:04:37]} e5 {[%clk
01:01:50]} {[%emt 00:22:32]} 14. Bb5 {[%clk 01:20:36]} {[%emt 00:00:51]} e4
{[%clk 00:54:21]} {[%emt 00:08:00]} 15. Nfd2 {[%clk 01:15:55]} {[%emt
00:05:11]} Bg4 {[%clk 00:46:09]} {[%emt 00:08:42]} 16. Qc2 {[%clk 01:08:28]}
{[%emt 00:07:57]} Ne5 {[%clk 00:38:59]} {[%emt 00:07:39]} 17. Nf1 {[%clk
01:05:25]} {[%emt 00:03:32]} Bxc5 {[%clk 00:38:35]} {[%emt 00:00:56]} 18. Nxc5
{[%clk 01:03:31]} {[%emt 00:02:24]} Qxc5 {[%clk 00:39:00]} {[%emt 00:00:05]} 19.
Be3 {[%clk 01:02:35]} {[%emt 00:01:26]} Qe7 {[%clk 00:38:04]} {[%emt 00:01:25]}
20. Qb3 {[%clk 00:44:11]} {[%emt 00:18:55]} Be6 {[%clk 00:32:31]} {[%emt
00:06:03]} 21. Bd4 {[%clk 00:43:24]} {[%emt 00:01:16]} Ng6 {[%clk 00:32:08]}
{[%emt 00:00:53]} 22. Ne3 {[%clk 00:36:31]} {[%emt 00:07:24]} Nf4 {[%clk
00:26:54]} {[%emt 00:05:44]} 23. c4 {[%clk 00:30:59]} {[%emt 00:06:03]} Rad8
{[%clk 00:26:04]} {[%emt 00:01:20]} 24. c5 {[%clk 00:19:33]} {[%emt 00:11:55]}
Qf7 {[%clk 00:25:12]} {[%emt 00:01:22]} 25. Rac1 {[%clk 00:17:44]} {[%emt
00:02:18]} Rc8 {[%clk 00:23:28]} {[%emt 00:02:15]} 26. Rc2 {[%clk 00:12:07]}
{[%emt 00:06:07]} Qg6 {[%clk 00:22:54]} {[%emt 00:01:03]} 27. Rec1 {[%clk
00:11:37]} {[%emt 00:01:01]} N6h5 {[%clk 00:17:09]} {[%emt 00:06:15]} 28. Kh1
{[%clk 00:10:43]} {[%emt 00:01:24]} Kh8 {[%clk 00:15:39]} {[%emt 00:02:00]} 29.
Rd1 {[%clk 00:03:10]} {[%emt 00:07:51]} Nf6 {[%clk 00:14:21]} {[%emt 00:02:00]}
30. Qc3 {[%clk 00:02:31]} {[%emt 00:01:10]} Ng4 {[%clk 00:12:50]} {[%emt
00:02:01]} 31. Nxg4 {[%clk 00:02:14]} {[%emt 00:00:47]} Bxg4 {[%clk 00:11:10]}
{[%emt 00:02:10]} 32. Rg1 {[%clk 00:02:26]} {[%emt 00:00:18]} Ne6 {[%clk
00:08:32]} {[%emt 00:03:07]} 33. Be2 {[%clk 00:00:49]} {[%emt 00:02:08]} Bxe2
{[%clk 00:06:07]} {[%emt 00:02:55]} 34. Rxe2 {[%clk 00:01:14]} {[%emt
00:00:04]} Rf5 {[%clk 00:06:31]} {[%emt 00:00:06]} 35. b4 {[%clk 00:00:37]}
{[%emt 00:01:09]} Rh5 {[%clk 00:06:27]} {[%emt 00:00:33]} 36. Re3 {[%clk
00:00:35]} {[%emt 00:00:32]} axb4 {[%clk 00:05:29]} {[%emt 00:01:28]} 37. Qxb4
{[%clk 00:00:57]} {[%emt 00:00:08]} Rf8 {[%clk 00:05:44]} {[%emt 00:00:14]} 38.
c6 {[%clk 00:00:32]} {[%emt 00:00:56]} bxc6 {[%clk 00:05:03]} {[%emt 00:01:11]}
39. Rg3 {[%clk 00:00:40]} {[%emt 00:00:21]} Qf7 {[%clk 00:03:05]} {[%emt
00:02:29]} 40. a5 {[%clk 00:00:32]} {[%emt 00:00:38]} Rf5 {[%clk 00:01:19]}
{[%emt 00:02:16]} 41. Be3 {[%clk 00:00:32]} {[%emt 00:00:30]} Rc8 {[%clk
00:00:48]} {[%emt 00:01:01]} 42. Rc1 {[%clk 00:20:07]} {[%emt 00:13:03]} c5
{[%clk 00:29:58]} {[%emt 00:01:21]} 43. Qc3 {[%clk 00:19:27]} {[%emt 00:01:10]}
h6 {[%clk 00:22:29]} {[%emt 00:07:58]} 44. Bxh6 {[%clk 00:19:40]} {[%emt
00:00:17]} d4 {[%clk 00:22:47]} {[%emt 00:00:11]} 45. Qd2 {[%clk 00:20:06]}
{[%emt 00:00:05]} Rxf2 {[%clk 00:21:18]} {[%emt 00:02:00]} 46. Bxg7+ {[%clk
00:20:30]} {[%emt 00:00:05]} Nxg7 {[%clk 00:20:39]} {[%emt 00:01:09]} 47. Qh6+
{[%clk 00:20:52]} {[%emt 00:00:08]} Kg8 {[%clk 00:21:07]} {[%emt 00:00:01]} 48.
Rxg7+ {[%clk 00:21:11]} {[%emt 00:00:11]} Qxg7 {[%clk 00:21:35]} {[%emt
00:00:03]} 49. Qe6+ {[%clk 00:21:34]} {[%emt 00:00:07]} Kh7 {[%clk 00:21:44]}
{[%emt 00:00:21]} 50. Qh3+ {[%clk 00:20:05]} {[%emt 00:01:59]} Qh6 {[%clk
00:21:45]} {[%emt 00:00:28]} 51. Qd7+ {[%clk 00:20:23]} {[%emt 00:00:13]} Kg6
{[%clk 00:21:51]} {[%emt 00:00:23]} 52. Rb1 {[%emt 00:02:50]} Rcf8 {[%clk
00:20:53]} 53. Rb6+ {[%clk 00:19:54]} {[%emt 00:00:07]} R2f6 {[%clk 00:20:41]}
{[%emt 00:00:42]} 0-1

[Event "European Women's Chess Championship (1-48)"]
[Site "Batumi, Georgia"]
[Date "2026.05.25"]
[Round "1.31"]
[White "Brunello, Marina"]
[Black "Shuqja, Klean"]
[Result "1-0"]
[TimeControl "90min/ 40moves+ 30min+ 30-sec increment from move 1"]
[WhiteTitle "-"]
[BlackTitle "-"]
[WhiteFideId "822590"]
[BlackFideId "4701585"]
[WhiteElo "2346"]
[BlackElo "2092"]

1. e4 {[%clk 01:30:57]} {[%emt 00:00:02]} c5 {[%clk 01:28:10]} {[%emt
00:02:51]} 2. Nf3 {[%clk 01:31:18]} {[%emt 00:00:08]} Nc6 {[%clk 01:28:36]}
{[%emt 00:00:04]} 3. Bb5 {[%clk 01:31:42]} {[%emt 00:00:06]} g6 {[%clk
01:28:55]} {[%emt 00:00:11]} 4. Bxc6 {[%clk 01:31:49]} {[%emt 00:00:23]} dxc6
{[%clk 01:29:13]} {[%emt 00:00:12]} 5. d3 {[%clk 01:31:32]} {[%emt 00:00:47]}
Bg7 {[%clk 01:29:35]} {[%emt 00:00:08]} 6. a4 {[%clk 01:31:24]} {[%emt
00:00:38]} a5 {[%clk 01:29:50]} {[%emt 00:00:15]} 7. O-O {[%clk 01:29:17]}
{[%emt 00:02:35]} e5 {[%clk 01:28:57]} {[%emt 00:01:25]} 8. Nbd2 {[%clk
01:28:04]} {[%emt 00:01:42]} Ne7 {[%clk 01:27:37]} {[%emt 00:01:50]} 9. Nc4
{[%clk 01:27:32]} {[%emt 00:01:02]} Qc7 {[%clk 01:27:28]} {[%emt 00:00:40]} 10.
Be3 {[%clk 01:25:48]} {[%emt 00:02:13]} b6 {[%clk 01:26:50]} {[%emt 00:01:08]}
11. Nfd2 {[%clk 01:25:55]} {[%emt 00:00:23]} O-O {[%clk 01:24:25]} {[%emt
00:02:55]} 12. f4 {[%clk 01:23:14]} {[%emt 00:03:10]} exf4 {[%clk 01:15:48]}
{[%emt 00:09:08]} 13. Bxf4 {[%clk 01:22:03]} {[%emt 00:01:40]} Qd8 {[%clk
01:13:35]} {[%emt 00:02:44]} 14. Kh1 {[%clk 01:13:59]} {[%emt 00:08:34]} Be6
{[%clk 01:06:01]} {[%emt 00:08:05]} 15. Qc1 {[%clk 00:52:56]} {[%emt 00:21:33]}
f5 {[%clk 01:00:19]} {[%emt 00:06:12]} 16. Bg5 {[%clk 00:48:34]} {[%emt
00:04:51]} Rb8 {[%clk 00:56:30]} {[%emt 00:04:20]} 17. Qe1 {[%clk 00:46:57]}
{[%emt 00:02:05]} Qd7 {[%clk 00:50:03]} {[%emt 00:06:58]} 18. Qh4 {[%clk
00:45:03]} {[%emt 00:02:24]} Nc8 {[%clk 00:43:23]} {[%emt 00:07:10]} 19. Rae1
{[%clk 00:42:13]} {[%emt 00:03:19]} b5 {[%clk 00:19:39]} {[%emt 00:24:15]} 20.
Nxa5 {[%clk 00:30:50]} {[%emt 00:11:52]} Bxb2 {[%clk 00:19:20]} {[%emt
00:00:50]} 21. Nab3 {[%clk 00:30:17]} {[%emt 00:01:03]} Bxb3 {[%clk 00:17:30]}
{[%emt 00:02:20]} 22. Nxb3 {[%clk 00:26:10]} {[%emt 00:04:37]} Qa7 {[%clk
00:03:22]} {[%emt 00:14:38]} 23. axb5 {[%clk 00:24:40]} {[%emt 00:02:00]} cxb5
{[%clk 00:02:42]} {[%emt 00:01:10]} 24. exf5 {[%clk 00:24:58]} {[%emt
00:00:12]} Rb7 {[%clk 00:01:44]} {[%emt 00:01:28]} 25. fxg6 {[%clk 00:24:30]}
{[%emt 00:00:57]} Rxf1+ {[%clk 00:01:11]} {[%emt 00:01:03]} 26. Rxf1 {[%clk
00:24:57]} {[%emt 00:00:04]} hxg6 {[%clk 00:01:28]} {[%emt 00:00:13]} 27. Qg4
{[%clk 00:23:44]} {[%emt 00:01:42]} Rc7 {[%clk 00:00:34]} {[%emt 00:01:25]} 28.
Qe6+ {[%clk 00:23:54]} {[%emt 00:00:19]} Kg7 {[%clk 00:00:37]} {[%emt
00:00:28]} 29. Bf6+ {[%clk 00:21:35]} {[%emt 00:02:49]} Bxf6 {[%clk 00:01:03]}
{[%emt 00:00:04]} 30. Qxf6+ {[%clk 00:22:03]} {[%emt 00:00:03]} Kh7 {[%clk
00:00:51]} {[%emt 00:00:41]} 31. Rf3 {[%clk 00:22:15]} {[%emt 00:00:18]} Rg7
{[%clk 00:00:33]} {[%emt 00:00:48]} 32. Rh3+ {[%clk 00:22:25]} {[%emt
00:00:20]} 1-0

[Event "European Women's Chess Championship (1-48)"]
[Site "Batumi, Georgia"]
[Date "2026.05.25"]
[Round "1.32"]
[White "Deak-Sala, Emilia"]
[Black "Gaponenko, Inna"]
[Result "1/2-1/2"]
[TimeControl "90min/ 40moves+ 30min+ 30-sec increment from move 1"]
[WhiteTitle "-"]
[BlackTitle "-"]
[WhiteFideId "795615"]
[BlackFideId "14101181"]
[WhiteElo "2086"]
[BlackElo "2331"]

1. e4 {[%clk 01:30:58]} {[%emt 00:00:01]} d6 {[%clk 01:30:48]} {[%emt
00:00:13]} 2. d4 {[%clk 01:31:24]} {[%emt 00:00:04]} g6 {[%clk 01:31:10]}
{[%emt 00:00:07]} 3. Bd3 {[%clk 01:31:24]} {[%emt 00:00:30]} Bg7 {[%clk
01:29:32]} {[%emt 00:02:09]} 4. Nf3 {[%clk 01:31:27]} {[%emt 00:00:26]} e5
{[%clk 01:25:18]} {[%emt 00:04:44]} 5. c3 {[%clk 01:31:46]} {[%emt 00:00:11]}
Nc6 {[%clk 01:24:48]} {[%emt 00:01:00]} 6. h3 {[%clk 01:27:17]} {[%emt
00:04:59]} Nf6 {[%clk 01:21:20]} {[%emt 00:03:59]} 7. O-O {[%clk 01:21:33]}
{[%emt 00:06:13]} O-O {[%clk 01:21:40]} {[%emt 00:00:10]} 8. Re1 {[%clk
01:20:40]} {[%emt 00:01:23]} a5 {[%clk 01:13:26]} {[%emt 00:08:45]} 9. a4
{[%clk 01:20:22]} {[%emt 00:00:48]} exd4 {[%clk 01:08:32]} {[%emt 00:05:23]} 10.
cxd4 {[%clk 01:10:57]} {[%emt 00:09:54]} Nb4 {[%clk 01:08:16]} {[%emt
00:00:48]} 11. Bf1 {[%clk 01:10:46]} {[%emt 00:00:40]} Re8 {[%clk 01:03:44]}
{[%emt 00:05:02]} 12. Nc3 {[%clk 01:09:38]} {[%emt 00:01:39]} c6 {[%clk
01:03:09]} {[%emt 00:01:04]} 13. Bg5 {[%clk 01:06:30]} {[%emt 00:03:38]} h6
{[%clk 01:02:00]} {[%emt 00:01:39]} 14. Bh4 {[%clk 01:06:55]} {[%emt 00:00:05]}
g5 {[%clk 00:57:21]} {[%emt 00:05:09]} 15. Bg3 {[%clk 01:06:44]} {[%emt
00:00:41]} d5 {[%clk 00:56:55]} {[%emt 00:00:56]} 16. e5 {[%clk 01:00:32]}
{[%emt 00:06:42]} Nh7 {[%clk 00:56:27]} {[%emt 00:00:58]} 17. Na2 {[%clk
00:58:23]} {[%emt 00:02:39]} Nxa2 {[%clk 00:36:24]} {[%emt 00:20:33]} 18. Rxa2
{[%clk 00:58:48]} {[%emt 00:00:06]} Bf5 {[%clk 00:36:50]} {[%emt 00:00:03]} 19.
b3 {[%clk 00:54:54]} {[%emt 00:04:24]} Nf8 {[%clk 00:33:14]} {[%emt 00:04:06]}
20. Nh2 {[%clk 00:52:57]} {[%emt 00:02:26]} Ne6 {[%clk 00:19:22]} {[%emt
00:14:23]} 21. Ng4 {[%clk 00:50:22]} {[%emt 00:03:05]} Bxg4 {[%clk 00:18:21]}
{[%emt 00:01:31]} 22. hxg4 {[%clk 00:47:32]} {[%emt 00:03:20]} Qb6 {[%clk
00:18:13]} {[%emt 00:00:38]} 23. Rd2 {[%clk 00:47:54]} {[%emt 00:00:08]} Bf8
{[%clk 00:17:57]} {[%emt 00:00:46]} 24. Re3 {[%clk 00:45:45]} {[%emt 00:02:39]}
Bb4 {[%clk 00:06:18]} {[%emt 00:12:09]} 25. Rdd3 {[%clk 00:45:50]} {[%emt
00:00:26]} Rad8 {[%clk 00:06:39]} {[%emt 00:00:08]} 26. Rf3 {[%clk 00:42:28]}
{[%emt 00:03:52]} c5 {[%clk 00:07:05]} {[%emt 00:00:04]} 27. Rf6 {[%clk
00:36:17]} {[%emt 00:06:41]} c4 {[%clk 00:07:25]} {[%emt 00:00:10]} 28. bxc4
{[%clk 00:32:56]} {[%emt 00:03:51]} dxc4 {[%clk 00:07:53]} {[%emt 00:00:02]} 29.
Rdf3 {[%clk 00:33:13]} {[%emt 00:00:13]} Qxd4 {[%clk 00:03:18]} {[%emt
00:05:05]} 30. Qc2 {[%clk 00:30:06]} {[%emt 00:03:37]} Qd2 {[%clk 00:03:35]}
{[%emt 00:00:13]} 31. Qe4 {[%clk 00:22:44]} {[%emt 00:07:52]} Rd4 {[%clk
00:02:32]} {[%emt 00:01:33]} 32. Qxb7 {[%clk 00:21:24]} {[%emt 00:01:51]} Re7
{[%clk 00:02:59]} {[%emt 00:00:02]} 33. Qc8+ {[%clk 00:12:59]} {[%emt
00:08:55]} Rd8 {[%clk 00:01:09]} {[%emt 00:02:20]} 34. Qxc4 {[%clk 00:13:10]}
{[%emt 00:00:20]} Rc7 {[%clk 00:01:08]} {[%emt 00:00:30]} 35. Qe4 {[%clk
00:07:30]} {[%emt 00:06:10]} Rd4 {[%clk 00:01:20]} {[%emt 00:00:18]} 36. Qa8+
{[%clk 00:07:21]} {[%emt 00:00:39]} Rd8 {[%clk 00:01:38]} {[%emt 00:00:12]} 37.
Qe4 {[%clk 00:07:44]} {[%emt 00:00:07]} Rd4 {[%clk 00:02:03]} {[%emt 00:00:05]}
38. Qa8+ {[%clk 00:07:39]} {[%emt 00:00:35]} Rd8 {[%clk 00:02:29]} {[%emt
00:00:04]} 39. Qe4 {[%clk 00:06:56]} {[%emt 00:01:11]} 1/2-1/2